bitfinex-derivatives/quotes_SOLF0:USTF0_20250319
["timestamp","ask_amount","ask_price","bid_price","bid_amount"]
[1742418338320,48.67349835,134.04,133.94,30.59474957]
[1742418338525,21.08474957,134.02,133.95,27.54]
[1742418339128,7.4633,133.98,133.95,27.54]
[1742418339330,21.08474957,134.02,133.95,27.54]
[1742418339526,0.05593108,133.98,133.95,27.59143154]
[1742418339730,0.05593108,133.98,133.97,7.4634]
[1742418340030,0.05593108,133.98,133.96,27.54]
[1742418340732,7.51893108,133.98,133.96,27.54]
[1742418341936,0.05593108,133.98,133.96,35.0039]
[1742418342337,0.05593108,133.98,133.96,7.4639]
[1742418342533,0.05593108,133.98,133.96,35.0039]
[1742418342935,0.05593108,133.98,133.97,7.4634]
[1742418348141,0.05593108,133.98,133.96,35.0037]
[1742418348345,0.05593108,133.98,133.96,48.62474957]
[1742418348745,0.05593108,133.98,133.97,7.4634]
[1742418350443,0.05593108,133.98,133.96,35.0038]
[1742418350645,0.05593108,133.98,133.96,27.54]
[1742418351042,7.51903108,133.98,133.96,27.54]
[1742418352144,0.05593108,133.98,133.96,27.54]
[1742418352838,0.05593108,133.98,133.96,35.0037]
[1742418354245,0.05593108,133.98,133.97,7.4634]
[1742418354745,0.05593108,133.98,133.96,27.54]
[1742418354938,0.05593108,133.98,133.96,35.0037]
[1742418355139,0.05593108,133.98,133.96,41.01704185]
[1742418355748,0.05593108,133.98,133.96,48.48074185]
[1742418356247,7.51883108,133.98,133.96,48.48074185]
[1742418356544,0.05593108,133.98,133.96,48.48074185]
[1742418358142,0.05593108,133.98,133.97,7.4634]
[1742418361955,0.05593108,133.98,133.95,0.05143154]
[1742418362552,7.4638,133.97,133.95,0.05143154]
[1742418363048,7.4637,133.97,133.95,0.05143154]
[1742418363257,0.05593108,133.98,133.95,7.51593154]
[1742418363750,7.51903108,133.98,133.95,7.51593154]
[1742418364845,7.4635,133.97,133.95,0.05143154]
[1742418365047,0.05593108,133.98,133.95,0.05143154]
[1742418365547,7.51923108,133.98,133.95,7.51553154]
[1742418365754,7.51923108,133.98,133.95,0.05143154]
[1742418365950,0.05593108,133.98,133.97,7.4634]
[1742418366147,0.05593108,133.98,133.97,35.0034]
[1742418368052,0.05593108,133.98,133.97,13.47704185]
[1742418368451,7.51923108,133.98,133.96,35.0037]
[1742418368652,0.05593108,133.98,133.96,27.54]
[1742418369146,0.05593108,133.98,133.97,20.94044185]
[1742418371157,0.05593108,133.98,133.97,7.4634]
[1742418376855,0.05593108,133.98,133.96,35.0037]
[1742418377449,0.05593108,133.98,133.96,27.54]
[1742418377659,0.05593108,133.98,133.97,7.4634]
[1742418380254,0.05593108,133.98,133.96,35.0038]
[1742418380559,0.05593108,133.98,133.96,27.54]
[1742418381061,7.51903108,133.98,133.96,27.54]
[1742418381755,7.4634,133.97,133.96,27.54]
[1742418381961,7.4634,133.97,133.95,41.20876563]
[1742418383459,7.4634,133.97,133.95,0.05143154]
[1742418386264,7.4634,133.97,133.95,7.51573154]
[1742418387064,7.51903108,133.98,133.95,7.51573154]
[1742418387263,0.05593108,133.98,133.95,0.05143154]
[1742418387465,0.05593108,133.98,133.93,72.71733409]
[1742418387466,27.52,133.97,133.93,72.71733409]
[1742418387657,7.4651,133.94,133.93,72.71733409]
[1742418387967,7.4651,133.94,133.93,41.15733409]
[1742418388562,2.0492,133.96,133.93,41.15733409]
[1742418388563,0.04799467,133.95,133.93,41.15733409]
[1742418389167,0.04799467,133.95,133.93,48.62263409]
[1742418389562,7.51279467,133.95,133.92,7.51462769]
[1742418389770,0.04799467,133.95,133.92,7.51462769]
[1742418390170,0.04799467,133.95,133.93,7.4656]
[1742418390367,0.04799467,133.95,133.92,0.04872769]
[1742418391571,0.04799467,133.95,133.94,7.4651]
[1742418392671,0.04799467,133.95,133.93,7.4654]
[1742418393072,0.04799467,133.95,133.92,13.53213191]
[1742418393771,7.51279467,133.95,133.92,13.53213191]
[1742418394270,7.51279467,133.95,133.92,20.99803191]
[1742418394668,0.04799467,133.95,133.92,13.53213191]
[1742418395062,7.4655,133.94,133.92,13.53213191]
[1742418395266,0.04799467,133.95,133.92,13.53213191]
[1742418395671,7.4656,133.93,133.92,13.53213191]
[1742418396462,7.4656,133.93,133.92,0.04872769]
[1742418399477,0.04799467,133.95,133.9,28.21]
[1742418399478,7.4668,133.91,133.9,28.21]
[1742418399976,7.4668,133.91,133.89,68.64638376]
[1742418400675,7.52129957,133.91,133.89,68.6972767]
[1742418400976,7.4673,133.9,133.89,68.6972767]
[1742418401480,7.4673,133.9,133.89,0.05089294]
[1742418402275,7.4679,133.89,133.88,10.2787024]
[1742418403182,13.48340422,133.9,133.86,31.58703409]
[1742418403581,7.4682,133.89,133.86,39.11091175]
[1742418403780,13.48340422,133.9,133.86,39.11091175]
[1742418403981,7.4682,133.89,133.86,39.11091175]
[1742418404378,13.48340422,133.9,133.86,39.11091175]
[1742418404578,7.4683,133.89,133.86,39.11091175]
[1742418405082,7.4683,133.89,133.86,7.52387766]
[1742418405972,7.4685,133.88,133.86,0.05457766]
[1742418406278,13.48340422,133.9,133.86,0.05457766]
[1742418406582,7.469,133.87,133.86,0.05457766]
[1742418406782,27.52,133.87,133.83,30.87863169]
[1742418406982,13.48340422,133.86,133.83,30.87863169]
[1742418407878,7.4707,133.84,133.83,30.93132141]
[1742418408582,48.47410422,133.84,133.83,30.93132141]
[1742418409284,41.00340422,133.84,133.83,30.93132141]
[1742418409885,41.00340422,133.84,133.83,0.05268972]
[1742418410182,29.63459896,133.86,133.83,0.05268972]
[1742418410382,29.63459896,133.86,133.83,7.52358972]
[1742418410880,29.63459896,133.86,133.83,0.05268972]
[1742418411578,29.63459896,133.86,133.83,7.52388972]
[1742418412279,37.10439896,133.86,133.83,0.05268972]
[1742418412479,13.48340422,133.85,133.83,0.05268972]
[1742418412980,7.4707,133.84,133.83,0.05268972]
[1742418413378,7.4707,133.84,133.82,64.83]
[1742418413581,13.48340422,133.85,133.82,64.83]
[1742418414186,20.95380422,133.85,133.82,72.3014]
[1742418414485,20.95380422,133.85,133.82,72.34953038]
[1742418417487,13.48340422,133.85,133.82,64.87813038]
[1742418418086,7.4712,133.83,133.82,64.87813038]
[1742418420389,20.95430422,133.84,133.82,64.87813038]
[1742418425684,41.07640318,133.86,133.82,34.84813038]
[1742418425885,0.05299896,133.86,133.83,13.48340422]
[1742418426189,0.05299896,133.86,133.84,7.4703]
[1742418426383,0.05299896,133.86,133.83,13.48340422]
[1742418426790,0.05299896,133.86,133.83,20.95430422]
[1742418427387,0.05299896,133.86,133.84,7.4705]
[1742418427793,0.05299896,133.86,133.83,53.29430422]
[1742418428390,7.52259896,133.86,133.83,53.29430422]
[1742418428989,7.52259896,133.86,133.83,45.82340422]
[1742418429289,7.4702,133.85,133.83,45.82340422]
[1742418429489,7.4702,133.85,133.83,32.34]
[1742418431493,0.05299896,133.86,133.83,45.82340422]
[1742418431686,0.05299896,133.86,133.85,13.48340422]
[1742418431893,246.4,133.89,133.85,13.48340422]
[1742418432092,253.8682,133.89,133.87,13.48340422]
[1742418432292,246.4,133.89,133.87,13.48340422]
[1742418432495,246.4,133.89,133.86,13.48340422]
[1742418432797,7.4684,133.88,133.86,13.48340422]
[1742418433296,7.4684,133.88,133.86,13.53958864]
[1742418433791,7.4684,133.88,133.86,21.00908864]
[1742418434399,7.4684,133.88,133.86,7.52568442]
[1742418435597,246.45603473,133.89,133.86,0.05618442]
[1742418435798,7.469,133.87,133.86,0.05618442]
[1742418436192,20.95240422,133.87,133.86,0.05618442]
[1742418437088,7.469,133.87,133.86,0.05618442]
[1742418439301,7.4686,133.88,133.86,0.05618442]
[1742418440302,7.469,133.87,133.86,0.05618442]
[1742418444603,7.4687,133.88,133.86,0.05618442]
[1742418446900,7.469,133.87,133.86,0.05618442]
[1742418448007,7.4688,133.88,133.86,7.52558442]
[1742418448908,7.469,133.87,133.86,0.05618442]
[1742418450507,246.45603473,133.89,133.86,41.05958864]
[1742418450812,7.467,133.91,133.89,7.4675]
[1742418451110,7.467,133.91,133.88,13.48340422]
[1742418451414,13.48340422,133.91,133.86,41.00340422]
[1742418451709,13.48340422,133.89,133.86,27.52]
[1742418451904,7.469,133.87,133.85,71.98118996]
[1742418452106,7.469,133.87,133.86,0.05627464]
[1742418452301,13.48340422,133.89,133.86,0.05627464]
[1742418452910,7.4687,133.88,133.86,0.05627464]
[1742418453406,7.469,133.87,133.86,0.05627464]
[1742418455912,7.4687,133.88,133.86,0.05627464]
[1742418456108,7.4687,133.88,133.86,7.52577464]
[1742418457207,7.4687,133.88,133.86,0.05627464]
[1742418457807,13.48340422,133.89,133.86,0.05627464]
[1742418458014,7.469,133.87,133.86,0.05627464]
[1742418461311,0.05049854,133.9,133.86,0.05627464]
[1742418461813,7.4684,133.89,133.86,7.52557464]
[1742418462410,7.51809854,133.9,133.87,7.4687]
[1742418462813,0.05049854,133.9,133.87,7.4687]
[1742418463313,7.4682,133.89,133.87,7.4687]
[1742418465609,7.4684,133.88,133.86,89.83806849]
[1742418465815,0.05049854,133.9,133.86,89.83806849]
[1742418466516,7.4681,133.89,133.87,6.83888258]
[1742418468021,0.05049854,133.9,133.88,13.48340422]
[1742418468516,7.4679,133.89,133.88,13.48340422]
[1742418468718,7.4679,133.89,133.87,34.33888258]
[1742418469021,7.4679,133.89,133.87,34.9689]
[1742418469320,7.51809854,133.9,133.87,34.9689]
[1742418470314,7.51809854,133.9,133.88,6.83562032]
[1742418471018,0.05049854,133.9,133.88,20.31902454]
[1742418472113,0.05049854,133.9,133.89,7.4679]
[1742418474320,2.1111,133.97,133.89,7.4679]
[1742418474321,13.48340422,133.99,133.89,7.46]
[1742418474515,13.48340422,133.99,133.94,13.48340422]
[1742418474711,9.3948,133.98,133.94,40.98340422]
[1742418474918,9.3948,133.98,133.95,7.4643]
[1742418475511,9.44918552,133.98,133.95,7.51915335]
[1742418475822,9.44918552,133.98,133.95,0.05485335]
[1742418476021,7.4635,133.97,133.95,0.05485335]
[1742418477119,1.98598552,133.98,133.95,7.51905335]
[1742418477120,7.51748552,133.98,133.95,7.51905335]
[1742418477922,7.4636,133.97,133.95,0.05485335]
[1742418480221,0.05438552,133.98,133.95,0.05485335]
[1742418480418,7.51748552,133.98,133.95,7.51935335]
[1742418480623,7.51748552,133.98,133.95,0.05485335]
[1742418480927,7.51748552,133.98,133.95,13.53825757]
[1742418481125,7.51748552,133.98,133.95,21.00245757]
[1742418481319,7.51748552,133.98,133.95,39.66245757]
[1742418481721,7.51748552,133.98,133.96,7.4639]
[1742418482421,0.05438552,133.98,133.96,7.4639]
[1742418484032,7.51728552,133.98,133.96,7.4639]
[1742418487927,13.53778974,133.98,133.95,37.37485335]
[1742418488934,0.05438552,133.98,133.97,13.48340422]
[1742418489129,0.05438552,133.98,133.97,40.96340422]
[1742418490135,0.05438552,133.98,133.97,48.42680422]
[1742418492232,0.05438552,133.98,133.97,40.96340422]
[1742418494436,0.05438552,133.98,133.97,48.42680422]
[1742418496639,22.3603,134.15,133.97,48.42340422]
[1742418496845,19.57910422,134.13,134.07,13.48340422]
[1742418497040,19.57910422,134.13,134.09,13.48340422]
[1742418497234,19.57910422,134.13,134.07,35.3575]
[1742418497442,19.57910422,134.13,134.07,41.38340422]
[1742418497644,13.48340422,134.11,134.05,41.36340422]
[1742418497834,13.53499368,134.11,134.09,0.05200482]
[1742418498041,27.88,134.1,134.04,13.48340422]
[1742418498238,13.48340422,134.09,134.04,13.48340422]
[1742418498744,27.88,134.12,134.08,20.94040422]
[1742418498941,19.57910422,134.13,134.08,13.48340422]
[1742418499242,0.05494859,134.11,134.1,13.48340422]
[1742418499444,246.3,134.14,134.11,7.4554]
[1742418499742,0.05055763,134.12,134.11,7.4554]
[1742418501047,5.763e-05,134.12,134.11,7.4554]
[1742418501239,35.43815395,134.17,134.1,43.46710422]
[1742418501438,35.43815395,134.17,134.15,13.48340422]
[1742418502346,35.4892797,134.17,134.15,0.04794277]
[1742418503149,35.4892797,134.17,134.15,13.53134699]
[1742418503450,35.4892797,134.17,134.15,0.04794277]
[1742418507751,35.4892797,134.17,134.16,41.22340422]
[1742418510153,35.4892797,134.17,134.16,48.67620422]
[1742418510552,35.4892797,134.17,134.16,41.22340422]
[1742418510750,35.4892797,134.17,134.15,0.04794277]
[1742418512353,7.4528,134.16,134.15,0.04794277]
[1742418512548,35.4892797,134.17,134.15,0.04794277]
[1742418514557,42.9417797,134.17,134.15,0.04794277]
[1742418514950,35.4892797,134.17,134.15,0.04794277]
[1742418515856,35.4892797,134.17,133.91,58.45439334]
[1742418516155,44.83,134.03,133.67,33.81633286]
[1742418516358,22.41,133.95,133.71,13.48340422]
[1742418516548,7.468,133.93,133.71,38.54]
[1742418516750,13.48340422,133.88,133.77,13.48340422]
[1742418516954,13.48340422,133.88,133.78,298.10340422]
[1742418517153,0.04695647,133.84,133.81,0.05269057]
[1742418517357,33.757557,133.83,133.81,0.05269057]
[1742418517556,7.4726,133.81,133.73,245.98]
[1742418517755,7.4726,133.81,133.74,38.72]
[1742418517955,705.47261094,133.75,133.73,245.98]
[1742418518151,705.47261094,133.75,133.72,1.49566257]
[1742418518152,643.47261094,133.75,133.72,1.49566257]
[1742418518659,643.52355463,133.75,133.72,38.79252486]
[1742418519057,643.52355463,133.75,133.74,62.0]
[1742418519262,650.99925463,133.75,133.74,62.0]
[1742418519463,7.52664369,133.75,133.74,62.0]
[1742418519862,7.4768,133.73,133.72,0.05252486]
[1742418520052,0.05094369,133.75,133.69,38.66]
[1742418520258,38.66,133.79,133.69,38.66]
[1742418520455,7.4772,133.73,133.67,31.45]
[1742418520752,7.4772,133.73,133.7,284.84]
[1742418520959,7.4772,133.73,133.72,62.0]
[1742418521362,7.4774,133.72,133.7,284.24866952]
[1742418522363,139.32694033,133.73,133.71,62.0]
[1742418522561,139.32694033,133.73,133.7,189.83236835]
[1742418523566,139.32694033,133.73,133.72,55.0]
[1742418523766,7.4769,133.73,133.72,55.0]
[1742418526069,7.53323826,133.74,133.72,55.0]
[1742418526275,0.05693826,133.74,133.72,55.0]
[1742418526460,0.05693826,133.74,133.73,37.85562964]
[1742418526764,365.0,133.82,133.73,71.29709432]
[1742418527163,365.0,133.82,133.73,33.44146468]
[1742418527367,365.0,133.82,133.74,284.46]
[1742418527563,40.0306,133.87,133.76,33.44146468]
[1742418527867,40.0306,133.87,133.77,37.98]
[1742418528069,0.05551916,133.83,133.8,0.05246225]
[1742418528269,0.05551916,133.83,133.8,38.01246225]
[1742418529169,7.52691916,133.83,133.8,37.89246225]
[1742418529574,0.05551916,133.83,133.8,37.89246225]
[1742418530370,0.05551916,133.83,133.81,55.0]
[1742418530570,7.4718,133.82,133.81,55.0]
[1742418532568,7.52691916,133.83,133.81,55.0]
[1742418532763,0.05551916,133.83,133.81,55.0]
[1742418533270,7.4718,133.82,133.81,55.0]
[1742418534373,7.52691916,133.83,133.81,55.0]
[1742418536374,7.52691916,133.83,133.8,0.05246225]
[1742418536675,0.22425295,133.81,133.8,0.05246225]
[1742418537274,0.22425295,133.81,133.8,55.05246225]
[1742418538472,0.22425295,133.81,133.78,37.56]
[1742418538873,0.22425295,133.81,133.79,7.4731]
[1742418539070,0.22425295,133.81,133.78,36.9]
[1742418539475,0.22425295,133.81,133.8,54.0]
[1742418540173,0.22425295,133.81,133.8,61.4729]
[1742418540580,0.22425295,133.81,133.8,54.0]
[1742418542681,0.05551916,133.83,133.8,54.0]
[1742418542975,0.05551916,133.83,133.8,61.4729]
[1742418543180,0.05551916,133.83,133.8,54.0]
[1742418543380,7.52711916,133.83,133.8,54.0]
[1742418544575,7.52711916,133.83,133.8,61.4729]
[1742418546087,7.52711916,133.83,133.8,54.0]
[1742418546685,19.44005233,133.83,133.8,54.0]
[1742418546983,7.4723,133.82,133.8,54.0]
[1742418547183,0.05551916,133.83,133.8,54.0]
[1742418547581,7.52701916,133.83,133.8,54.0]
[1742418547780,0.05551916,133.83,133.8,54.0]
[1742418549490,7.4719,133.82,133.8,54.0]
[1742418549784,0.05551916,133.83,133.8,61.4729]
[1742418550084,7.52721916,133.83,133.8,61.4729]
[1742418550285,0.05551916,133.83,133.8,54.0]
[1742418550485,26.85683317,133.81,133.8,54.0]
[1742418552188,0.05551916,133.83,133.8,54.0]
[1742418554593,7.4719,133.82,133.8,61.4729]
[1742418554801,19.44005233,133.83,133.8,54.0]
[1742418555101,7.4723,133.81,133.8,54.0]
[1742418556307,7.4722,133.82,133.8,54.0]
[1742418556502,19.44005233,133.83,133.8,54.0]
[1742418556702,0.05551916,133.83,133.8,54.0]
[1742418557006,7.52711916,133.83,133.8,61.4724]
[1742418558603,0.05551916,133.83,133.8,89.3]
[1742418558804,0.05551916,133.83,133.8,108.68453317]
[1742418559201,0.05551916,133.83,133.82,7.4718]
[1742418560900,0.05551916,133.83,133.81,0.05339825]
[1742418561500,7.52681916,133.83,133.81,0.05339825]
[1742418562210,0.05551916,133.83,133.81,7.52559825]
[1742418562406,0.05551916,133.83,133.81,0.05339825]
[1742418562808,0.05551916,133.83,133.82,7.4718]
[1742418563006,0.05551916,133.83,133.81,0.05339825]
[1742418563514,0.05551916,133.83,133.81,7.52539825]
[1742418565009,7.52681916,133.83,133.81,7.52539825]
[1742418565207,0.05551916,133.83,133.81,0.05339825]
[1742418566011,0.05551916,133.83,133.82,7.4718]
[1742418573118,55.80563317,133.91,133.86,7.4693]
[1742418573317,55.80563317,133.91,133.83,34.3]
[1742418573815,7.4681,133.89,133.83,34.3]
[1742418574220,7.4681,133.89,133.87,7.4687]
[1742418574621,7.5223554,133.89,133.87,7.4687]
[1742418576020,7.5223554,133.89,133.86,7.4693]
[1742418576224,7.5223554,133.89,133.87,62.0]
[1742418578023,7.4684,133.88,133.87,62.0]
[1742418578225,0.0542554,133.89,133.87,62.0]
[1742418578626,7.4684,133.88,133.87,62.0]
[1742418584323,0.0542554,133.89,133.87,62.0]
[1742418585630,0.0542554,133.89,133.88,7.4684]
[1742418588336,0.0542554,133.89,133.87,69.4687]
[1742418588835,0.0542554,133.89,133.87,62.0]
[1742418589434,0.0542554,133.89,133.88,7.4684]
[1742418592239,0.0542554,133.89,133.87,62.0]
[1742418592240,7.5225554,133.89,133.87,62.0]
[1742418592638,0.0542554,133.89,133.87,62.0]
[1742418593530,7.4695,133.86,133.85,12.85289137]
[1742418593731,7.4695,133.86,133.85,0.05289137]
[1742418594842,7.4692,133.87,133.85,0.05289137]
[1742418596444,7.4692,133.87,133.86,62.0]
[1742418602448,7.4688,133.88,133.86,62.0]
[1742418604345,0.0542554,133.89,133.86,62.0]
[1742418604750,0.0542554,133.89,133.86,94.38]
[1742418605445,0.0542554,133.89,133.86,62.0]
[1742418605951,7.469,133.87,133.86,62.0]
[1742418606150,0.0542554,133.89,133.86,74.82]
[1742418608053,7.469,133.87,133.86,74.82]
[1742418608755,7.4687,133.88,133.86,74.82]
[1742418609657,7.469,133.87,133.86,74.82]
[1742418613656,7.469,133.87,133.86,12.82]
[1742418615253,7.469,133.87,133.86,0.3252]
[1742418615453,7.4695,133.86,133.85,0.05289137]
[1742418615657,39.3495,133.86,133.85,0.05289137]
[1742418616160,46.8295,133.86,133.85,9.137e-05]
[1742418618766,365.0,133.85,133.68,14.9586]
[1742418618959,365.0,133.84,133.71,1.9488]
[1742418619159,7.4753,133.76,133.72,41.3763]
[1742418619460,7.4753,133.76,133.72,9.5963]
[1742418619665,31.78,133.79,133.72,33.8793]
[1742418619867,7.5274544,133.75,133.73,62.05271591]
[1742418620166,0.0514544,133.75,133.73,62.05271591]
[1742418620365,7.4762,133.74,133.73,62.05271591]
[1742418623266,7.4762,133.74,133.73,0.05271591]
[1742418623467,7.4762,133.74,133.73,1.591e-05]
[1742418623668,9.5879,133.74,133.73,1.591e-05]
[1742418624269,17.0679,133.74,133.73,1.591e-05]
[1742418628867,7.4774,133.72,133.71,1.591e-05]
[1742418629070,31.42,133.72,133.67,62.0]
[1742418629766,7.4788,133.7,133.67,62.0]
[1742418629965,7.4788,133.7,133.68,0.04817665]
[1742418630670,31.32,133.69,133.55,261.7528]
[1742418630870,31.32,133.69,133.61,3.9227]
[1742418631066,31.32,133.69,133.61,35.3027]
[1742418631767,7.48,133.68,133.63,7.482]
[1742418631973,0.05640677,133.66,133.64,0.05440091]
[1742418632671,0.05640677,133.66,133.65,31.32]
[1742418632862,0.05640677,133.66,133.65,38.8013]
[1742418633669,0.05640677,133.66,133.65,100.8013]
[1742418633871,0.05640677,133.66,133.65,93.32]
[1742418635867,7.53710677,133.66,133.65,62.0]
[1742418636068,31.27640677,133.66,133.64,0.05440091]
[1742418636278,7.4813,133.65,133.64,9.1e-07]
[1742418638474,9.5073,133.65,133.64,9.1e-07]
[1742418640174,38.75750677,133.66,133.64,9.1e-07]
[1742418640776,0.05640677,133.66,133.64,9.1e-07]
[1742418641170,0.05640677,133.66,133.65,7.4813]
[1742418641676,254.2587,133.7,133.67,7.48]
[1742418641872,2.026,133.72,133.64,31.1]
[1742418642276,7.4787,133.7,133.64,31.1]
[1742418642475,2.026,133.72,133.64,31.1]
[1742418642874,0.05285054,133.69,133.67,0.04747694]
[1742418643477,0.05285054,133.69,133.68,7.4796]
[1742418644181,0.05285054,133.69,133.68,69.4796]
[1742418644379,0.05285054,133.69,133.68,62.0]
[1742418645371,0.05285054,133.69,133.68,69.4796]
[1742418645578,395.94,133.74,133.68,63.9975]
[1742418645876,30.94,133.74,133.68,63.9975]
[1742418646074,30.94,133.74,133.68,65.9555]
[1742418646275,7.4766,133.74,133.7,7.4782]
[1742418646680,0.04752208,133.73,133.71,0.05340708]
[1742418647280,0.04752208,133.73,133.71,7.53120708]
[1742418648182,0.04752208,133.73,133.71,0.05340708]
[1742418648380,7.52442208,133.73,133.71,0.05340708]
[1742418648581,0.04752208,133.73,133.71,0.05340708]
[1742418649081,7.4774,133.72,133.71,0.05340708]
[1742418649472,7.4774,133.72,133.71,62.05340708]
[1742418651183,30.76752208,133.73,133.65,30.72]
[1742418651382,30.72,133.73,133.67,7.4801]
[1742418651681,30.72,133.73,133.65,30.72]
[1742418651982,30.72,133.73,133.67,7.4798]
[1742418652174,0.0557116,133.7,133.68,0.05566802]
[1742418652681,246.88,133.76,133.68,30.71566802]
[1742418652882,246.88,133.76,133.69,7.3472]
[1742418653182,246.88,133.76,133.69,11.3272]
[1742418653877,7.4771,133.73,133.71,0.05633746]
[1742418654185,7.4771,133.73,133.72,62.0]
[1742418654478,0.05062078,133.74,133.72,62.0]
[1742418657483,7.4768,133.73,133.72,62.0]
[1742418657980,7.52712078,133.74,133.72,62.0]
[1742418658187,0.05062078,133.74,133.72,62.0]
[1742418658486,0.05062078,133.74,133.72,69.477]
[1742418659386,0.05062078,133.74,133.72,62.0]
[1742418660094,7.4768,133.73,133.72,62.0]
[1742418660293,0.05062078,133.74,133.72,62.0]
[1742418660490,7.4768,133.73,133.72,62.0]
[1742418660684,0.05062078,133.74,133.72,62.0]
[1742418661091,7.52702078,133.74,133.72,62.0]
[1742418661296,0.05062078,133.74,133.72,62.0]
[1742418661494,7.52712078,133.74,133.72,62.0]
[1742418661991,0.05062078,133.74,133.72,62.0]
[1742418662692,0.05062078,133.74,133.73,7.4768]
[1742418664792,0.05062078,133.74,133.72,30.3]
[1742418665395,7.4768,133.73,133.72,30.3]
[1742418665797,7.4768,133.73,133.72,92.3]
[1742418665996,7.52712078,133.74,133.72,92.3]
[1742418666199,0.05062078,133.74,133.72,92.3]
[1742418666590,0.05062078,133.74,133.73,7.4768]
[1742418668491,0.05062078,133.74,133.71,0.05633746]
[1742418668697,7.4774,133.72,133.71,0.05633746]
[1742418669692,7.4774,133.72,133.71,62.05633746]
[1742418671698,0.05062078,133.74,133.71,62.05633746]
[1742418673001,7.4768,133.73,133.71,62.05633746]
[1742418673299,0.05062078,133.74,133.71,62.05633746]
[1742418673696,7.4774,133.72,133.71,62.05633746]
[1742418673914,7.4774,133.72,133.71,0.05633746]
[1742418680706,7.4774,133.72,133.71,3.746e-05]
[1742418681403,29.92,133.73,133.69,3.98]
[1742418681601,33.8925,133.73,133.69,3.98]
[1742418682304,33.8925,133.73,133.7,62.0]
[1742418682606,33.8925,133.73,133.7,62.05099543]
[1742418682904,7.4784,133.71,133.7,62.05099543]
[1742418683107,29.92,133.73,133.7,62.05099543]
[1742418683311,0.05062078,133.74,133.7,62.05099543]
[1742418683608,7.52692078,133.74,133.7,69.52919543]
[1742418683809,7.52692078,133.74,133.7,62.05099543]
[1742418685011,0.05062078,133.74,133.71,7.4775]
[1742418686910,0.05062078,133.74,133.7,66.01099543]
[1742418687315,7.4779,133.71,133.7,66.01099543]
[1742418689514,7.4779,133.71,133.7,62.05099543]
[1742418690728,7.4779,133.71,133.7,9.543e-05]
[1742418706442,7.4796,133.68,133.67,9.543e-05]
[1742418706739,283.3796,133.68,133.67,9.543e-05]
[1742418707737,7.4802,133.67,133.66,4.031e-05]
[1742418709242,275.9,133.68,133.58,40.3813]
[1742418709446,3.6966,133.67,133.58,40.3813]
[1742418709736,7.4844,133.6,133.58,7.7916]
[1742418710140,7.4838,133.61,133.59,62.0]
[1742418710441,0.05002453,133.6,133.59,62.0]
[1742418715046,7.53412453,133.6,133.59,62.0]
[1742418716345,0.05002453,133.6,133.59,62.0]
[1742418718443,0.05002453,133.6,133.59,69.4846]
[1742418718845,0.05002453,133.6,133.59,102.0945]
[1742418719045,28.74,133.65,133.6,7.484]
[1742418719338,28.74,133.65,133.57,23.73]
[1742418720246,0.0506649,133.62,133.6,0.04941779]
[1742418720541,28.82,133.61,133.6,0.04941779]
[1742418720746,36.3035,133.61,133.6,0.04941779]
[1742418722048,36.3035,133.61,133.6,1.779e-05]
[1742418724751,28.82,133.61,133.57,23.73]
[1742418725446,7.4852,133.58,133.57,23.73]
[1742418725647,36.2052,133.58,133.57,23.73]
[1742418726351,28.72,133.58,133.57,23.73]
[1742418726550,7.53755724,133.59,133.57,23.73]
[1742418727248,0.05265724,133.59,133.57,23.73]
[1742418729752,0.05265724,133.59,133.58,62.0]
[1742418731454,247.02,133.7,133.58,98.08]
[1742418731653,247.02,133.7,133.59,11.5008]
[1742418732561,0.05723677,133.66,133.63,0.05087396]
[1742418732758,247.02,133.7,133.66,7.4803]
[1742418732957,247.02,133.7,133.67,28.64]
[1742418733557,247.02,133.7,133.67,36.1201]
[1742418733850,247.07486061,133.7,133.67,36.16727982]
[1742418734659,365.0,133.75,133.68,62.0]
[1742418734862,246.98,133.76,133.68,69.4453]
[1742418734863,275.6,133.76,133.68,69.4453]
[1742418735062,246.98,133.76,133.68,69.4453]